Workbook

Sheet Balanza Comprobacion
D1: Diferencia para control debe ser cero
D2: HOSPITAL DR. ROMAN BRACHE
D3: Balanza de comprobación
D4: Al 30 DE JUNIO del 2025
D5: (Valores en RD$) 4.1.2.3.01
B6: ** | D6: Cuentas | E6: DB | F6: CR
B7: 0001 | C7: 0001 | D7: Efectivo y Banco | E7: $450,022.04
B8: 0004 | D8: Cuentas por cobrar | E8: $1,596,451.38
B9: 0005 | D9: Inventario | E9: $1,947,528.25
B10: 0006 | D10: Pagos anticipados
B11: 0012 | D11: Mobiliarios y equipos de oficina | E11: $216,130.00
D12: terreno
B13: ** | D13: PASIVOS
B14: 0016 | D14: Cuentas por pagar a corto plazo | F14: $1,442,689.87
B15: 0019 | D15: Retenciones y acumulaciones por pagar
D16: Beneficios a empleados a corto plazo
D17: Cuentas por pagar a largo plazo
D18: Capital | F18: $2,767,471.80
B19: 0033 | D19: Resultado acumulado
B20: 0032 | D20: Resultado del período | F20: $1,050,306.61
D21: Ajustes
B22: 0037 | D22: Ingresos
B23: 0039 | C23: 211101 | D23: Sueldos fijos
B24: 0039 | C24: 211208 | D24: empleados temporales
B25: 0039 | C25: 211401 | D25: Sueldo anual no. 13
B26: 0039 | C26: 212206 | D26: Incentivos por rendimientos individual
D27: SOBRESUELDOS
D28: Prestación laboral por desvinculación
D29: Compensaciones especiales
B30: 0039 | C30: 0015 | D30: Compensación por horas extraordinarias
C31: 212205 | D31: Compensación por servicio de seguridad
C32: 212206 | D32: Compensaciones por resultado
C33: 212207 | D33: Compensación por distancia
B34: 0039 | D34: Pago de horas extraordinarias, Horas extraordinarias fin de año (Reglamento 523-09)
B35: 0039 | C35: 0017 | D35: Bono por desempeño
D36: GRATIFICACIONES Y BONIFICACIONES
B37: 0039 | C37: 0018 | D37: Gratificaciones por aniversario de institución
D38: CONTRIBUCIONES A LA SEGURIDAD SOCIAL Y RIESGO LABORAL
C39: 214101 | D39: Bonificaciones
B40: 0039 | C40: 215101 | D40: Contribuciones al seguro de salud
B41: 0039 | C41: 215201 | D41: Contribuciones al seguro de pensiones
B42: 0039 | C42: 215301 | D42: Contribuciones al seguro de riesgo laboral
D43: SERVICIOS NO PERSONALES
D44: SERVICIOS BÁSICOS
B45: 0044 | C45: 221201 | D45: Servicios telefónico de larga distancia
B46: 0044 | C46: 221301 | D46: Teléfono local
B47: 0044 | D47: Telefax y correo
B48: 0044 | C48: 221501 | D48: Servicio de internet y televisión por cable
B49: 0044 | C49: 221601 | D49: Energía eléctrica
C50: 221701 | D50: Agua | E50: 10,000.00
D51: Organización de eventos y festividades
D52: PUBLICIDAD, IMPRESIÓN Y ENCUADERNACIÓN
B53: 0044 | C53: 222101 | D53: Publicidad y propaganda
B54: 0044 | C54: 222201 | D54: Impresión y encuadernación
B56: 0044 | C56: 223101 | D56: Viáticos dentro del país | E56: 4,100.00
B57: 0044 | D57: Viáticos fuera del país
D58: TRANSPORTE Y ALMACENAJES
B59: 0044 | C59: 224101 | D59: Pasajes
B60: 0044 | C60: 224401 | D60: Peajes
D61: Almacenaje
C62: 224201 | D62: Fletes | E62: 600.00
D63: ALQUILERES Y RENTA | E63: 7,788.00
B64: 0044 | D64: Alquiler de equipo de oficina y muebles
B65: 0044 | C65: 2.2.5.4.01 | D65: Alquileres de equipos de transporte, tracción y elevación
B66: 0044 | C66: 225101 | D66: Alquilleres y rentas de edificios y locales
C67: 225301 | D67: Alquiler de equipo educacional
D68: Alquiler de equipo para computación
C69: 225801 | D69: Otros alquileres
D70: SEGUROS
B71: 0044 | D71: Seguro de bienes muebles
B72: 0044 | C72: 2.2.6.3.01 | D72: Seguro de personas
D73: CONSERV., REPS. MENORES E INSTALACIONES TEMP.
C74: 226201 | D74: Seguros de bienes
C75: 227101 | D75: Obras menores en edificaciones
C76: 227202 | D76: Mant y rep equipos
C77: 227203 | D77: Mant y rep equipo transporte
C78: 227205 | D78: Mant y reparac eq oficina y muebles
B79: 0044 | C79: 227204 | D79: Mantenim y reparación eq sanitarios y laboratorios
D80: Mantenimiento y reparación de obras civiles en instalaciones varias
B81: 0044 | C81: 2.2.7.1.07 | D81: Servicios de pintura y derivados con fin de higiene y embellecimiento
B82: 0044 | D82: Reparaciones de obras menores
B83: 0044 | D83: Mant. y rep. De equipo de oficina y muebles
C84: 2.2.7.1.0.6 | D84: Instalaciones eléctricas
B85: 0044 | C85: 2.2.7.2.04 | D85: Mantenimiento y reparación de equipos sanitarios y de laboratorio
B86: 0044 | C86: 227206 | D86: Mant. y rep. equipo transporte, tracción y elevación
D87: Mantenimiento y reparación de muebles y equipos de oficina
D88: Mantenimiento y reparación de equipo para computación
D89: Equipo de telecomunicaciones y señalamiento
D90: OTROS SERVICIOS NO PERSONALES
B91: 0044 | C91: 228201 | D91: Comisiones y gastos bancarios | E91: 1,984.56
B92: 0044 | C92: 2.2.8.3.01 | D92: Servicios sanitarios médicos y veterinarios
B93: 0044 | C93: 228501 | D93: Fumigación
B94: 0044 | C94: Activos prepagados | D94: Insecticidas, Fumigantes y Otros
B95: 0044 | C95: 228503 | D95: Limpieza e higiene
B96: 0044 | D96: Eventos generales
B97: 0044 | C97: 228702 | D97: Servicios jurídicos
D98: Gastos judiciales
B99: 0044 | C99: 228704 | D99: Servicios de capacitación
B100: 0044 | C100: 228706 | D100: Otros servicios técnicos profesionales
B101: 0044 | C101: 228801 | D101: Impuestos
B102: 0044 | D102: Recolección de residuos sólidos
B103: 0044 | C103: 228705 | D103: Servicios de informática y sistemas computarizados
D104: MATERIALES Y SUMINISTROS
D105: ALIMENTOS Y PRODUCTOS AGROFORESTALES
B106: 0039 | C106: 229201 | D106: Servicios alimentacion
B107: 0041 | C107: 2.3.1.3.03 | D107: Productos forestales
D108: TEXTILES Y VESTUARIOS
B109: 0041 | C109: 2.3.2.1.01 | D109: Hilados y telas
C110: 231101 | D110: Alimentos y bebidas para personas | E110: 108,390.26
C111: 231401 | D111: Prod de madera y corcho
B112: 0041 | C112: 232201 | D112: Acabados textiles
B113: 0039 | C113: 232301 | D113: Prendas de vestir
D114: PRODUCTOS DE PAPEL, CARTÓN E IMPRESO
B115: 0041 | C115: 233101 | D115: Papel de escritorio | E115: 39,895.00
B116: 0041 | C116: 233201 | D116: Productos de papel y cartón | E116: 54,021.60
B117: 0041 | C117: 233301 | D117: Productos de artes gráficas
B118: 0039 | C118: 234101 | D118: Productos medicinales para uso humano | E118: 101,103.50
D119: PRODUCTOS DE CUERO, CAUCHO Y PLÁSTICOS
B120: 0041 | C120: 235201 | D120: Artículos de cuero
B121: 0041 | C121: 233401 | D121: Libros, revistas y periódicos
B122: 0041 | C122: 235301 | D122: Llantas y neumáticos
B123: 0041 | C123: 235401 | D123: Artículos de caucho
B124: 0041 | C124: 2.3.5.5.01 | D124: Artículos de plástico | E124: 50,431.25
D125: PRODUCTOS DE MINERALES, METÁLICOS Y NO METÁLICOS
B126: 0041 | D126: Metales y piedras preciosas
B127: 0041 | C127: 2.3.6.1.01 | D127: Productos de cemento
C128: 2.3.6.2.0.3 | D128: Productos de porcelana
B129: 0041 | C129: 2.3.6.1.04 | D129: Productos de yeso
B130: 0041 | C130: 2.3.6.2.01 | D130: Productos de vidrio
B131: 0041 | C131: 2.3.6.3.01 | D131: Productos ferrosos
B132: 0041 | C132: 2.3.6.3.02 | D132: Productos no ferrosos
C133: 235401 | D133: Productos de caucho
C134: 235501 | D134: Articulos de plastico
C135: 236 | D135: Productos minerales, metalicos
B136: 0041 | C136: 236304 | D136: Herramientas menores
B137: 0041 | D137: Productos de hojalata
B138: 0041 | C138: 2.3.6.3.06 | D138: Accesorios de metal
B139: 0041 | C139: 2.3.6.4.0.4 | D139: Piedra, arcilla y arena
D140: COMBUSTIBLES, LUBRICANTES, PRODUCTOS QUÍMICOS Y CONEXOS
C141: 237104 | D141: Gas GLP | E141: 19,227.00
B142: 0041 | C142: 2371 | D142: Combustibles y lubricantes
B143: 0041 | C143: 237206 | D143: Pinturas, lacas y barnices
B144: 0041 | D144: Aceites y grasas
B145: 0041 | D145: Lubricantes
B146: 0041 | C146: 237203 | D146: Productos químicos de lab y de uso personal | E146: 183,564.37
B147: 0041 | C147: 237205 | D147: Insecticidas, fumigantes y otros
B148: 0041 | C148: 237206 | D148: Pinturas, lacas, barnices, diluyentes y absorbentes para pinturas
D149: PRODUCTOS Y ÚTILES VARIOS
B150: 0041 | C150: 239101 | D150: Material para limpieza | E150: 31,167.88
B151: 0041 | C151: 239201 | D151: Útiles de escritorio, oficina e informática | E151: 43,905.00
B152: 0041 | C152: 239301 | D152: Útiles menores médico quirurgicos | E152: 210,762.16
C153: 239501 | D153: Utiles de cocina y comedor | E153: 1,810.00
B154: 0041 | C154: 239301 | D154: Utiles menores méd quirurgicos y de laboratorio
B155: 0041 | C155: 239601 | D155: Productos eléctricos y afines | E155: 1,150.00
B156: 0041 | C156: 239801 | D156: Otros repuestos y accesorios menores
B157: 0041 | C157: 239901 | D157: Productos y Utiles Varios n.i.p
B158: 0039 | C158: 239902 | D158: Bonos para útiles diversos
B159: 0041 | C159: 236407 | D159: Minerales
B160: 0041 | C160: 239501 | D160: Útiles de cocina y comedor
B162: 0044 | D162: Otros
D163: TRANSFERENCIAS CORRIENTES
B164: 0040 | C164: 241202 | D164: Ayudas y donaciones ocacionales a hogares y personas
B165: 0039 | C165: 241401 | D165: Becas nacionales
B166: 0039 | C166: 241402 | D166: Becas extranjeras
C167: 263101 | D167: Equipo medico y de laboratori
C168: 263201 | D168: Instrumental medico y de laboratorio
B169: 0040 | D169: Transf P/Disminucion Deuda Publica y Otras
B170: 0042 | C170: 241601 | D170: Transferencias corrientes a asoc sin fines de lucro
D171: Transferencias corrientes
B172: 0040 | D172: Anticipos Financieros
B173: 0042 | D173: Gasto de depreciación
B174: 0042 | D174: Gasto de amortización
B175: 0044 | D175: Pérdida por retiro
D176: Gasto de amortización
D177: Otros Gastos | E177: 180,436.03
C178: 228201 | D178: Comisiones y gastos bancarios
D179: Balance | E179: =SUM(E7:E178) -> 5,260,468.28 | F179: =SUM(F7:F178) -> 5,260,468.28 | J179: =SUM(J23:J178) -> 0 | K179: =E179-F179 -> 0.00
W246: =+R245-S245 -> 0

Sheet ESF SNS
C1: HOSPITAL DR. ROMAN BRACHE
C2: Estados Financieros
C3: Al 30 JUNIO DEL 2025
C4: Valores en RD$
A8: Mapeo | C8: Activos
C9: Activos corrientes
A10: 0001 | D10: Efectivo y equivalentes de efectivo (Nota 1) | F10: $450,022.04
A11: 0004 | D11: Cuenta por cobrar (Notas 2) | F11: $1,596,451.38
A12: 0005 | D12: Inventarios (Nota 3) | F12: $1,947,528.25
A13: 0006 | D13: Pagos anticipados (Nota 4)
C14: Total activos corrientes | F14: =SUM(F10:F13) -> $3,994,001.67 | G14: =SUM(G9:G13) -> 0
C16: Activos no corrientes
A17: 0008 | D17: Cuentas por cobrar a largo plazo (Nota 5)
A18: 0012 | D18: Mobiliarios y equipos neto (Nota 6) | F18: $216,130.00
D19: Equipo de Transporte (Nota 7)
D20: Terrenos (Nota 8)
C21: Total activos no corrientes | G21: =SUM(G17:G20) -> 0
C23: Total activos | F23: =SUM(F14:F22) -> $4,210,131.67 | G23: =SUM(G21,G14) -> 0
C25: Pasivos
C26: Pasivos corrientes
A27: 0016 | D27: Cuentas por pagar suplidores (Nota 9 ) | F27: $1,442,689.87
A28: 0019
A29: 0021 | D29: Beneficios acomulados por pagar a empleados (Nota 10) | F29: $383,919.19
C30: Total pasivos corrientes | F30: =SUM(F27:F29) -> $1,826,609.06 | G30: =SUM(G27:G29) -> 0
C32: Pasivos no corrientes
A33: 0024 | D33: Cuentas por pagar a largo plazo ()
C34: Total pasivos no corrientes
C35: Total pasivos | F35: =SUM(F30:F34) -> $1,826,609.06 | G35: =SUM(G30,G34) -> 0
C37: Activos Netos/Patrimonio (Nota 13)
A38: 0030 | D38: Patrimonio | F38: $556,913.55
A39: 0032 | D39: Resultados positivos (ahorro) / negativo (desahorro) | F39: 1,826,609.06
C40: Total activos netos/patrimonio | F40: $2,383,522.61
C42: Total pasivos y activos netos/patrimonio | F42: $4,210,131.67 | G42: =+G35+G40 -> 0
D46: Licda. Margarita Taveras
D47: Enc. Contabilidad
D55: FORMATO ESTADOS FINANCIEROS
D57: ESTADOS FINANCIEROS
D58: INFORMES O ESTADOS CONTABLES: Son el reflejo de la contabilidad de una empresa y muestran la estructura económica de la misma. En los Estados Financieros se plasman las actividades económicas que se realizan en la empresa durante un determinado tiempo.
D60: ESTAN COMPUESTOS POR:
D61: -Activos
D62: -Pasivos
D63: -Capital
D65: ACTIVOS: Son todos las propiedades que posee una empresa.
D66: PASIVOS: Deudas y compromisos que posee la empresa.
D67: CAPITAL O PATRIMONIO: Aportaciones realizadas y beneficios que ha generado la empresa.

Sheet ERF SRS
C2: HOSPITAL DR. ROMAN BRACHE
C3: Estado de Rendimiento Financiero
C4: Del ejercicio terminado al 30 JUNIO del 2025
C5: (Valores en RD$)
H7: =+[1]ESF!H7 -> 2016
C8: Ingresos (Nota 17)
A9: 0035 | D9: Impuestos
A10: 0036 | D10: Ingresos por transacciones con contraprestación
A11: 0037 | D11: Transferencias | F11: 1,444,534.71
A12: 0038 | D12: Recargos, multas y otros ingresos | F12: 1,596,451.38
C13: Total ingresos | F13: =SUM(F10:F12) -> 3,040,986.09 | H13: =SUM(H9:H12) -> 0
C15: Gastos (Notas 18, 19, 20, 21 y 22)
A16: 0039 | D16: Sueldos, salarios y beneficios a empleados
A17: 0040 | D17: Subvenciones y otros pagos por transferencias
A18: 0041 | D18: Suministros y materiales para consumo | F18: $1,050,306.61
A19: 0042 | D19: Gasto de depreciación y amortización
A20: 0043 | D20: Deterioro del valor de propiedad, planta y equipo
A21: 0044 | D21: Otros gastos
A22: 0045 | D22: Gastos financieros | H22: =SUMIF([1]BC!B:B,[1]ERF!A22,[1]BC!G:G) -> 
C23: Total gastos | F23: =SUM(F16:F22) -> 1,050,306.61 | H23: =SUM(H16:H22) -> 
C27: Resultados positivos (ahorro) / negativo (desahorro) | F27: =+F13-F23 -> 1,990,679.48 | H27: =+H13-H23+#REF!+#REF! -> 
C29: Atribuible a:
A30: 0048 | D30: Propietarios de la entidad controladora | F30: 0 | H30: 0
A31: 0049 | D31: Intereses minoritarios | F31: 0 | H31: 0
F32: =SUM(F30:F31) -> 0 | H32: =SUM(H30:H31) -> 0
D36: ESTADO DE RESULTADO
D37: Muestra si ha habido beneficios o pérdidas.
D39: SE DETERMINA DE LA SIGUIENTE MANERA
D41: Total de Ingresos
C42: menos | D42: total de Gastos
C43: igual | D43: Resultados positivos (ahorro) / negativo (desahorro)

Sheet Efectivo
B1: HOSPITAL DR. ROMAN BRACHE
B2: Nota No. 1: Efectivo Caja y Bancos
B3: Del ejercicio terminado al 30 DE JUNIO del 2025
B4: (Valores en RD$)
A6: # Cta. | B6: Nombre de cuenta | C6: Monto
B9: Caja Chica
B10: Cta Seguridad Social
B11: Cta Venta de servicio | C11: 449,911.61
B12: Cta Operativa
B13: Cta Anticipo financiero | C13: 110.43
B14: Total balance cuentas bancarias del Reservas
A16: # Cta. | B16: Tesoreria Nacional | C16: Monto
A17: 9995028000
A18: 9995028001 | C18: =SUM(C15) -> 0
A21: 2110003000
C22: =SUM(C18) -> 0
A23: 100198000 | C23: =SUM(C21) -> 0
C24: =SUM(C22) -> 0
B25: Total efectivo y equivalentes de efectivo | C25: =SUM(C11:C13) -> 450,022.04
B29: EFECTIVO: Es un elemento de balance y forma parte del activo (circulante o corriente).

Sheet Cuentas por Cobrar
A1: HOSPITAL DR. ROMAN BRACHE
A2: Nota No. 2: Cuentas Por Cobrar
A3: DEL EJERCICIO TERMINADO AL 30 DE JUNIO 2025
A4: (Valores en RD$)
A6: Detalle | B6: Monto
A9: Cuentas Por Cobrar Colaboradores | B9: 0.00
A10: Otras Cuentas Por Cobrar (Retencion IR-3) | B10: 0.00
A11: Cuentas por Cobrar
A12: Cuentas por Cobrar Ventas de Servicios
A13: Cuentas por Cobrar Senasa | B13: 1,596,451.38
A14: Anticipos financieros
A15: Total Cuentas Por Cobrar | B15: =SUM(B9:B14) -> 1,596,451.38
A19: CUENTA POR COBRAR: Son derechos de cobros que posee una entidad sobre tercero hasta una fecha determinada, forma parte de los activos más importante, ya que es el activo más liquido después del efectivo.

Sheet Inventario
A1: HOSPITAL DR. ROMAN BRACHE
A2: Nota No. 3: Inventarios
A3: DEL EJERCICIO TERMINADO AL 30 DE JUNIO 2025
A4: (Valores en RD$)
A5: Descripción | B5: Monto
A8: Inventario Medicamentos | B8: 1,611,606.42
A9: Inventario Insumos laboratorios | B9: 54,142.14
A10: Inventario Insumos odontologicos | B10: 196,959.69
A11: Equipos medicos
A12: Equipos odontologicos | B12: 0.00
A13: Equipos informaticos | B13: 0.00
A14: Material gastable de oficina, impresos, toner | B14: 84,820.00
A15: Ferreteria/Refrigeracion | B15: 0.00
A16: Hogar/Higiene | B16: 0.00
A17: Componentes vehiculos | B17: 0.00
A18: Textiles | B18: 0.00
A20: Total Inventario | B20: =SUM(B8:B19) -> 1,947,528.25
A23: INVENTARIOS: Es el conjunto de bienes en existencia destinado a realizar una operación, debe aparecer contablemente en los activos (como activos circulantes o corrientes).

Sheet Mobiliario Eq. Ofc.
A1: HOSPITAL DR. ROMAN BAUTISTA BRACHE
A2: Nota No. 5: Mobiliarios y Equipos Transporte
A3: AL 30 JUNIO 2025
A4: (Valores en RD$)
A6: Mobiliarios y Equipos de Oficinas | B6: Monto
A8: Costos:
A9: Saldos al inicio | B9: 216,130.00
A10: Adiciones
A11: Retiros
A12: Saldo al final | B12: 216,130.00
A17: Equipos de Transporte y Otros | B17: HDRBB
A18: Costos:
A19: Saldos al inicio
A20: Adiciones
A21: Retiros
A22: Saldo al final
A26: Depreciación acumulada: | B26: Sede Central
B27: SNS
A28: Saldos al inicio Mob. Y Eq.
A29: Saldos al inicio de Equipo de Trans.
A30: Cargo del período Mob. Y Eq.
A31: Cargo del período Equipo de Trans.
A32: Retiros Mob. Y Equipo | B32: 0
A33: Retiros Equipo de Trans.
A34: Saldo al final
A37: Mobiliarios y equipos, neto
A40: MOBILIARIOS Y EQUIPOS: Son todos los muebles y enseres que posee una entidad para que el espacio de trabajo sea funcional.

Sheet CXP Corto plazo
A1: HOSPITAL DR. ROMAN RACHE
A2: Nota No. 9: Cuentas por Pagar a Corto Plazo
A3: DEL EJERCICIO TERMINADO AL 30 DE JUNIO 2025
A4: (Valores en RD$)
A7: Detalle | B7: Monto
A10: Cuentas por Pagar Suplidores | B10: 1,442,689.87
A11: Cuentas por Pagar Alquileres
A12: Total Cuentas Por Pagar a Corto Plazo | B12: =SUM(B10:B11) -> 1,442,689.87
A15: CUENTAS POR PAGAR: Son todas aquellas deudas que una entidad contrae con los diferentes proveedores, producto de haber adquirido bienes y servicios.
A17: SE DIVIDEN EN:
A18: CORTO PLAZO: Son aquellas deudas que deberán pagarse en un plazo de un año o menos.
A20: LARGO PLAZO: Es la que su plazo se realizara de manera posterior a un año.

Sheet Pagos anticipados
A1: HOSPITAL DR. ROMAN BAUTISTA BRACHE | J1: EJEMPLO
A2: Nota No. 4: Pagos anticipados
A3: DEL EJERCICIO TERMINADO AL 30 DE JUNIO 2024 | I3: Seguros | J3: Pagos | K3: Balance
A4: (Valores en RD$) | I4: 12,000.00
I5: enero | J5: 0.00 | K5: 12,000.00
I6: febrero | J6: 1,000.00 | K6: =K5-J6 -> 11,000.00
A7: Detalle | B7: Monto | I7: marzo | J7: 1,000.00 | K7: 10,000.00
I8: abril | J8: 1,000.00 | K8: 9,000.00
I9: mayo | J9: 1,000.00 | K9: 8,000.00
A10: Alquileres | I10: junio | J10: 1,000.00 | K10: 7,000.00
A11: Seguros vehiculos | I11: julio | J11: 1,000.00 | K11: 6,000.00
A12: Total Cuentas Por Pagar a Corto Plazo | I12: agosto | J12: 1,000.00 | K12: 5,000.00
I13: septbre | J13: 1,000.00 | K13: 4,000.00
I14: octubre | J14: 1,000.00 | K14: 3,000.00
I15: noviembre | J15: 1,000.00 | K15: 2,000.00
A16: PAGOS ANTICIPADOS: Son aquellos pagos que se contabiliza en el ejercicio pero que realmente pertenecen a otro posterior. | I16: diciembre | J16: 1,000.00 | K16: =K15-J16 -> 1,000.00
A17: Ejemplo:
A18: Pagos de seguros
A19: Pagos de alquileres por adelantado
A20: Fianzas
A21: Etc.

Sheet Retenciones y Acum.
A1: HOSPITAL DR. ROMAN BAUTISTA BRACHE
A2: Nota No.10: Retenciones y Acumulaciones
A3: DEL EJERCICIO TERMINADO AL 30 DE JUNIO 2025
A4: (Valores en RD$)
A7: Detalle | B7: Monto
A8: Retenciones anteriores
A9: Retencion ISR 5%
A10: Retenciones ISR 10%
A11: Retencion IR-3
A12: Retencion ITBIS
A13: Infotep
A14: Retencion Seguridad Social
A15: Retencion de Supervision de Obras
A16: Retencion ley 6-86 Pensiones
A17: Otras retenciones
A18: Total Retenciones y Acumulaciones
A22: RETENCIONES Y ACOMULACIONES:
A23: Son deducciones efectuadas por agente de retención a los pagos de salarios y otros ingresos en una entidad determinada por leyes, reglamentos y normas tributaria.
A24: ACOMULACIONES:
A25: Son todas aquellas obligaciones de la entidad que no se han pagado en la fecha establecida

Sheet Benef. Empl x p Corto Plazo
A1: HOSPITAL DR. ROMAN BAUTISTA BRACHE
A2: Nota No. 10: Beneficios a Empleados por Pagar a Corto Plazo
A3: DEL EJERCICIO TERMINADO AL 30 DE JUNIO 2025
A4: (Valores en RD$)
A7: Detalle | B7: Monto
A10: Sueldos Por Pagar
A11: Viaticos Empleados
A12: Incentivos Senasa * | B12: $383,919.19
A13: Incentivos
A14: Total Beneficios a Empleados por Pagar a Corto Plazo | B14: =SUM(B10:B13) -> 383,919.19
A18: BENEFICIOS A EMPLEADOS POR PAGAR A CORTO PLAZO:
A19: Son las diferentes indemnizaciones adquirida por los empleados y que deben ser liquidadas en el término de 12 meses.
A20: Ejemplo:
A21: Sueldos
A22: Viáticos
A23: Incentivos

Sheet CXP Largo Plazo
A1: Servicio Regional de Salud
A2: Nota No.12: Cuentas por Pagar Largo Plazo
A3: =Efectivo!B3 -> Del ejercicio terminado al 30 DE JUNIO del 2025
A4: (Valores en RD$)
A5: HOSPITAL DR. ROMAN AUTISTA BRACHE
A8: Detalle | B8: Monto
A11: Cuentas por Pagar Alquileres Largo Plazo
A12: Total Cuentas Por Pagar a Largo Plazo
A16: LARGO PLAZO: son aquellas deudas que su pago se realizara de manera posterior a un año.

Sheet Patrimonio
A1: HOSPITAL DR. ROMAN BRACHE
A2: Nota No.13: Patrimonio
A3: =Efectivo!B3 -> Del ejercicio terminado al 30 DE JUNIO del 2025
A4: (Valores en RD$)
A6: Detalle | B6: Monto
A9: Capital | B9: $556,913.55
A10: Resultados positivos (ahorro)/negativo (desahorro) | B10: 1,826,609.06
A11: Total Patrimonio Neto | B11: =SUM(B9:B10) -> 2,383,522.61
A14: PATRIMONIO
A15: Es el conjunto de bienes y derechos, cargas y obligaciones que pertenecen a una persona física o jurídica.

Sheet Ingresos
A1: HOSPITAL DR. ROMAN BRACHE
A2: Nota No.17: Ingresos
A3: =Efectivo!B3 -> Del ejercicio terminado al 30 DE JUNIO del 2025
A4: (Valores en RD$)
A6: Ingresos con Contraprestacion de Servicios | B6: Monto
A8: Venta de Servicios | B8: 1,073,879.41
A9: Sub-Total
A11: Ingresos sin Contraprestacion de Servicios
A12: Otros Ingresos | B12: 21,250.00
A13: Operaciones XXX
A14: SENASA | B14: 1,596,451.38
A15: Fondo Operativo | B15: 349,405.30
A16: ANTICIPO FINANCIERO
A17: XXXX
A18: XXX
A19: Ayudas y Donaciones
A20: XXXX
A21: Sub- Cuenta Disponibilidad Direccion Central Servicio Nacional de Salud
A22: Sub-Total
A23: Total | B23: =SUM(B8:B22) -> 3,040,986.09
A27: INGRESOS
A28: Son cantidades monetarias que recibe una empresa por la venta de bienes o servicios.
A29: Pueden ser:
A30: Fijos y variables.

Sheet Total Gasto
A1: Servicio Nacional de Salud
A2: HOSPITAL DR. ROMAN BAUTISTA BRACHE
A3: Notas No.18 Gastos Generales
A4: DEL EJERCICIO TERMINADO AL 30 DE JUNIO DEL 2025
A5: (Valores en RD$)
A6: DETALLES | B6: MONTO
A7: Gastos de Consumo
A8: Remuneraciones
A9: Sueldos personal fijo
A10: empleados temporales
A11: SUELDO NO. 13
A12: Incentivo por rendimiento individual
A13: Compensacion servicios seguridad
A14: Compensaciones Directas al Personal
A15: Compensacion por resultados
A16: TELEFONO LOCAL
A17: FLETE | B17: 600.00
A18: Dietas y Gastos de Representacion
A19: Prestaciones y Bonificaciones
A20: Contribuciones al Seguro de salud
A21: Contribuciones al seguro de pensiones
A22: Contribuciones al seguro de Riesgo Laboral
A23: Otros Servicios Personales
A24: Bienes y Servicios
A25: Servicios no Personales
A26: SERVICIO JURIDICO
A27: Servicios Basicos
A28: Publicidad, Proganda
A29: Viaticos Dentro y Fuera del Pais | B29: 4,100.00
A30: Transporte y Almacenaje
A31: Alquileres de trasnporte | B31: 7,788.00
A32: Otros alquileres
A33: agua | B33: 10,000.00
A34: Conservacion, Reparac Menores y Construcciones Temporales
A35: Mant y rep equipos
A36: Mant y rep de equipo sanitarios y de laboratorio
A37: Otros Servicios No Personales
A38: Comisiones y gastos bancarios | B38: 1,984.56
A39: Serv tecnicos profesionales
A40: SERVICIOS DE PINTURA Y DERIVADOS CON FINES DE HIJIENE
A41: Gas glp
A42: alimentacion
A43: Materiales y Suministros
A44: Alimentos y bebidas p/personas | B44: 108,390.26
A45: EQUIPO DE LABORATORIO
A46: PAPEL DE ESCRITORIO | B46: 39,895.00
A47: Productos de Papel, Carton e Impresos | B47: 54,021.60
A48: Productos medicinales para uso humano | B48: 101,103.50
A49: PLASTICO | B49: 50,431.25
A50: PRODUCTO DE PORCELANA
A51: UTILES DE COCINA | B51: 1,810.00
A52: Productos de Minerales Metalicos y no Metalicos
A53: Productos y Utiles Varios
A54: Equipo medico y de laboratorio
A55: Instrumental medico y laboratorio
A56: Bienes muebles e inmuebles
A57: Direccion general de Contabilidad Gubernamental
A58: Plan de Cuentas General Para el Sector Publico
A59: Gastos por Cuentas Incobrables
A60: Perdidas en Rentas por Recaudar
A61: Perdidas en Cuentas Por Cobrar
A62: Gastos Financieros
A63: producto de artes grafica
A64: ACABADO TEXTILES
A65: Comisiones de la Deuda Interna
A66: Comisiones de la Deuda Externa
A67: Perdida en Operaciones Financieras
A68: Transferencias y Donaciones Corrientes
A69: PRODUCTO ELECTRICO | B69: 1,150.00
A70: Prestaciones de la Seguridad Social
A71: Transferencias al Sector Privado
A72: Transferencias al Sector Publico
A73: Transferencias al Sector Externo
A74: Alquiler de equipos de transporte, traccion y elevacion
A75: Mantenimiento y reparación de equipos laboratorio
A76: producto de artes grafica
A77: servicio de pintura y sus derivados con fines de higiene y embe.
A78: PRODUCTO DE PAPEL Y CARTON
A79: Instalaciones eelctrica
A80: IMPRESIONES Y ENCUADERNACION
A81: accesorio de metal
A82: Combustibles, Lubricantes.
A83: Gas glp | B83: 19,227.00
A84: OTROS ACCESORIOS
A85: materiales de limpieza | B85: 31,167.88
A86: Alimentos y bebidas p/personas
A87: EQUIPOS MEDICO Y LABOARATORIO
A88: PRODUCTO ELECTRICO
A89: PRODUCTO MEDICINALES PARA USO HUMANO
A90: insecticidas, fumigacion y otros
A91: servicio de pintura y sus derivados con fines de higiene y embe.
A92: productos quimico de laboratorio y de uso personal | B92: 183,564.37
A93: pintura, lacas, barnices, diluyentes y absorbentes para pintura
A94: PAPEL DE ESCRITORIO
A95: Utiles de escritorio, oficna e informatica | B95: 43,905.00
A96: Utiles menores medicos quirurgicos | B96: 210,732.16
A97: Otros gastos | B97: 180,436.03
A98: Mantenimiento y reparación de equipos sanitario y laboratorio
A99: Total Gastos Generales | B99: =SUM(B8:B98) -> 1,050,306.61
A104: GASTOS
A105: Son todos los egresos o salida de dinero que hace una persona o empresa para acreditarse derecho sobre bienes y servicios recibidos.
A106: El GASTO es una partida que disminuye el beneficio de la empresa o que aumenta la deuda o pérdida.
A107: Siempre implicara el desembolso de una empresa o persona física.
